bitfinex-derivatives/quotes_ETHF0:USTF0_20250621
["timestamp","ask_amount","ask_price","bid_price","bid_amount"]
[1750499221709,25.111,2444.1,2444.0,0.81817]
[1750499222105,25.111,2444.1,2443.6,8.51524753]
[1750499222106,25.111,2444.1,2443.6,6.46951753]
[1750499222301,25.111,2444.1,2442.7,3.2078]
[1750499222302,5.55827113,2443.7,2442.7,3.2078]
[1750499222610,2.35047113,2442.8,2442.7,4.02639]
[1750499224099,4.53565113,2442.8,2442.7,3.2078]
[1750499225518,4.53565113,2442.8,2442.7,4.02641]
[1750499225718,4.53565113,2442.8,2442.7,3.2078]
[1750499226717,4.53565113,2442.8,2442.7,4.02641]
[1750499227017,4.53565113,2442.8,2442.7,3.2078]
[1750499227720,4.53565113,2442.8,2442.7,4.02641]
[1750499228117,2.18518,2442.8,2442.7,4.02641]
[1750499228320,25.238,2442.8,2442.7,3.2078]
[1750499228721,25.238,2442.8,2442.7,4.02641]
[1750499232426,26.05658,2442.8,2442.7,4.02641]
[1750499232722,25.238,2442.8,2442.7,4.02641]
[1750499232916,26.05658,2442.8,2442.7,4.02641]
[1750499233119,25.238,2442.8,2442.7,4.02641]
[1750499234326,26.05658,2442.8,2442.7,4.02641]
[1750499234923,25.238,2442.8,2442.7,4.02641]
[1750499235524,26.05658,2442.8,2442.7,4.02641]
[1750499236726,27.44488,2442.8,2442.7,4.02641]
[1750499238527,0.81868,2442.5,2442.4,3.2078]
[1750499238825,28.37915113,2442.5,2442.4,3.2078]
[1750499239329,0.81874,2442.3,2442.2,0.81875]
[1750499239724,3.16921113,2442.3,2442.2,0.81875]
[1750499239917,3.86011113,2442.3,2442.2,0.81875]
[1750499240125,0.81878,2442.2,2442.1,3.2078]
[1750499240327,28.06048,2442.2,2442.1,3.2078]
[1750499241127,0.81892,2441.8,2441.6,0.32557176]
[1750499241329,27.62947113,2441.7,2441.6,1.14453176]
[1750499241529,0.81898,2441.6,2441.5,3.2078]
[1750499241827,2.89868,2441.6,2441.5,3.2078]
[1750499242019,3.60538,2441.6,2441.5,3.2078]
[1750499242221,2.7864,2441.6,2441.1,3.8981]
[1750499242423,2.23179,2441.6,2441.1,3.8981]
[1750499242627,31.894,2441.5,2441.4,4.02685]
[1750499248328,32.71301,2441.5,2441.4,4.02685]
[1750499249832,31.894,2441.5,2441.4,4.02685]
[1750499250030,5.95587113,2441.6,2441.5,0.81901]
[1750499250231,25.256,2441.6,2441.5,0.81901]
[1750499250436,25.256,2441.6,2441.5,1.50111]
[1750499253028,6.612,2441.9,2441.8,0.81891]
[1750499253236,25.263,2442.0,2441.9,0.81888]
[1750499253436,9.78123113,2442.3,2442.2,0.81878]
[1750499253641,35.04623113,2442.3,2442.2,0.81878]
[1750499254032,0.81878,2442.2,2442.1,4.02659]
[1750499254524,35.04622113,2442.3,2442.1,3.2078]
[1750499254736,0.81878,2442.2,2442.1,4.02658]
[1750499256135,32.69574,2442.3,2442.2,0.81878]
[1750499256341,35.02921113,2442.3,2442.2,0.81878]
[1750499256932,8.96247113,2442.3,2442.2,0.81878]
[1750499257139,34.21047113,2442.3,2442.2,0.81878]
[1750499258138,8.96247113,2442.3,2442.2,0.81878]
[1750499258440,2.35047113,2442.5,2442.4,0.81871]
[1750499258641,27.58947113,2442.5,2442.4,4.02651]
[1750499259835,2.35047113,2442.7,2442.4,3.2078]
[1750499260140,2.35047113,2442.7,2442.6,0.81864]
[1750499260332,27.60647113,2442.7,2442.6,0.81864]
[1750499260740,27.60447113,2442.7,2442.6,0.81864]
[1750499261136,25.254,2442.7,2442.6,0.81864]
[1750499262037,8.95847113,2443.1,2443.0,0.81851]
[1750499262239,34.21747113,2443.1,2443.0,0.81851]
[1750499262635,35.03595113,2443.1,2443.0,0.81851]
[1750499263938,9.77695113,2443.1,2443.0,0.81851]
[1750499264241,34.20747113,2443.1,2443.0,0.81851]
[1750499264743,35.02595113,2443.1,2443.0,0.81851]
[1750499265041,34.20747113,2443.1,2443.0,0.81851]
[1750499266537,34.20147113,2443.1,2443.0,0.81851]
[1750499267746,35.01995113,2443.1,2443.0,0.81851]
[1750499268738,35.00495113,2443.1,2443.0,0.81851]
[1750499271449,35.07342712,2443.1,2443.0,0.81851]
[1750499271648,0.81852,2443.0,2442.9,0.81852]
[1750499271945,3.16899113,2443.0,2442.9,0.81852]
[1750499272147,2.04653,2442.7,2441.9,6.46653106]
[1750499272342,2.35047113,2442.0,2441.9,0.81888]
[1750499272541,2.35047113,2442.0,2441.9,0.81886]
[1750499272542,27.61947113,2442.0,2441.9,0.81886]
[1750499273451,0.81879,2442.2,2441.7,3.2078]
[1750499273648,25.277,2442.1,2442.0,4.02664]
[1750499273946,8.95647113,2442.4,2442.2,0.81876]
[1750499273947,0.81875,2442.3,2442.2,0.81876]
[1750499274152,3.16925113,2442.2,2442.1,0.81879]
[1750499274350,2.35047113,2442.2,2442.1,0.81879]
[1750499276849,3.16925113,2442.2,2442.1,0.81879]
[1750499277956,0.81881,2442.1,2442.0,0.81882]
[1750499278257,4.58097113,2442.2,2442.1,0.81881]
[1750499279759,5.25437113,2442.2,2442.1,0.81881]
[1750499280258,0.81886,2442.0,2441.9,0.81886]
[1750499280467,28.43133113,2442.0,2441.9,0.81886]
[1750499280956,29.75163113,2442.0,2441.9,0.81886]
[1750499281151,27.61247113,2442.0,2441.9,0.81886]
[1750499284455,25.262,2442.0,2441.9,0.81886]
[1750499284756,25.262,2442.0,2441.9,1.48256]
[1750499285565,25.33047599,2442.0,2441.9,1.48256]
[1750499289660,0.06847599,2442.0,2441.9,1.48256]
[1750499289852,25.27547599,2442.0,2441.9,1.48256]
[1750499291054,25.27547599,2442.0,2441.8,3.2078]
[1750499291055,0.81888,2441.9,2441.8,3.2078]
[1750499291248,6.32853884,2441.9,2441.4,3.2078]
[1750499291446,3.16947113,2441.6,2441.1,3.2078]
[1750499291652,26.05401,2441.5,2441.4,4.02682]
[1750499292756,26.05401,2441.5,2441.4,3.2078]
[1750499292963,0.81911,2441.2,2441.1,4.71923]
[1750499293466,25.228,2441.2,2441.1,4.71923]
[1750499299765,25.29647599,2441.2,2441.1,4.71923]
[1750499300268,0.06847599,2441.2,2441.1,7.06970113]
[1750499300565,0.06847599,2441.2,2441.1,8.39930113]
[1750499301763,0.06847599,2441.2,2441.1,6.04883]
[1750499302985,0.06847599,2441.2,2441.1,4.02693]
[1750499303275,0.88758599,2441.2,2441.1,4.02693]
[1750499303874,0.06847599,2441.2,2441.1,4.02693]
[1750499304267,0.88758599,2441.2,2441.1,4.02693]
[1750499305377,0.88758599,2441.2,2441.1,3.2078]
[1750499305978,0.88758599,2441.2,2441.1,4.02695]
[1750499307167,0.88758599,2441.2,2441.1,3.2078]
[1750499307871,2.28958599,2441.2,2441.1,3.2078]
[1750499314885,2.22111,2441.2,2441.1,3.2078]
[1750499315383,2.22111,2441.2,2441.1,4.02695]
[1750499315883,25.94811,2441.2,2441.1,4.02695]
[1750499316281,25.129,2441.2,2441.0,0.6486]
[1750499316483,25.129,2441.2,2441.0,1.46777]
[1750499316677,25.94813,2441.2,2441.1,0.81915]
[1750499317781,2.35047113,2441.8,2441.1,3.2078]
[1750499317993,25.119,2441.4,2441.3,0.81908]
[1750499318186,0.06847599,2441.6,2441.5,4.02681]
[1750499318581,25.19647599,2441.6,2441.5,4.02681]
[1750499320185,0.81895,2441.7,2441.6,0.81898]
[1750499321385,3.81070113,2441.8,2441.6,0.81898]
[1750499321785,5.21910113,2441.8,2441.6,0.81898]
[1750499322182,3.8822,2441.9,2441.8,0.81891]
[1750499322479,4.30199134,2441.9,2441.8,0.81891]
[1750499323088,1.09419134,2441.9,2441.8,0.81891]
[1750499323285,3.16933113,2442.0,2441.8,0.81891]
[1750499323487,3.16932113,2442.0,2441.9,0.81888]
[1750499323680,4.26236481,2442.0,2441.9,0.81888]
[1750499323983,3.5119908,2442.0,2441.9,0.81888]
[1750499324290,3.23778712,2442.0,2441.6,1.3479]
[1750499324480,3.23778712,2442.0,2441.8,0.81889]
[1750499325177,3.16931113,2442.0,2441.8,0.81889]
[1750499325381,0.81888,2441.9,2441.8,0.81889]
[1750499326881,0.81892,2441.8,2441.7,0.81893]
[1750499327277,0.81892,2441.8,2441.5,3.2078]
[1750499327278,0.6961,2441.9,2441.5,3.2078]
[1750499327479,2.35047113,2441.6,2441.5,0.81901]
[1750499330092,5.12340113,2441.8,2441.7,0.81894]
[1750499331494,3.80800113,2441.8,2441.7,0.81894]
[1750499335995,0.81901,2441.6,2441.5,0.81899]
[1750499336197,3.16948113,2441.6,2441.5,0.81899]
[1750499336601,2.35047113,2441.6,2441.5,0.81899]
[1750499338900,1.3692,2441.7,2441.6,0.81898]
[1750499339103,3.80800113,2441.8,2441.7,0.81894]
[1750499341215,0.76457599,2441.9,2441.8,0.81891]
[1750499341419,0.06847599,2441.9,2441.8,0.81891]
[1750499342221,0.88735599,2441.9,2441.8,0.81891]
[1750499342920,0.88735599,2441.9,2441.8,4.02671]
[1750499343120,0.06847599,2441.9,2441.8,4.02671]
[1750499343415,0.81887,2442.0,2441.9,0.81888]
[1750499344119,0.81887,2442.0,2441.9,1.52338]
[1750499344425,0.88734599,2442.0,2441.9,1.52338]
[1750499345314,0.81887,2442.0,2441.9,1.52338]
[1750499345512,3.16934113,2442.0,2441.9,1.52338]
[1750499345814,3.16934113,2442.0,2441.9,0.7045]
[1750499346120,4.26032727,2442.0,2441.9,1.52338]
[1750499346620,4.26032727,2442.0,2441.9,0.7045]
[1750499346820,4.26032727,2442.0,2441.9,1.52338]
[1750499348419,4.26121319,2442.0,2441.9,1.52338]
[1750499350826,3.44234319,2442.0,2441.9,1.52338]
[1750499351216,4.26118319,2442.0,2441.9,1.52338]
[1750499351715,3.44234319,2442.0,2441.9,1.52338]
[1750499351910,4.26118319,2442.0,2441.9,1.52338]
[1750499352117,3.44234319,2442.0,2441.9,1.52338]
[1750499352723,4.26118319,2442.0,2441.9,1.52338]
[1750499353021,1.09187206,2442.0,2441.9,6.52338]
[1750499353225,2.35047113,2442.3,2441.9,1.4027]
[1750499353430,0.81884,2442.0,2441.9,1.52337]
[1750499353725,0.81884,2442.0,2441.8,4.02668]
[1750499354023,2.35047113,2441.9,2441.8,4.02668]
[1750499359432,3.74237113,2441.9,2441.8,4.02668]
[1750499359629,4.62972712,2441.9,2441.8,4.02668]
[1750499360729,1.46037599,2441.9,2441.6,3.25873106]
[1750499360929,3.69947113,2441.8,2441.7,0.81894]
[1750499365528,3.16938113,2441.8,2441.7,0.81894]
[1750499366430,4.48708113,2441.8,2441.7,0.81894]
[1750499369635,4.48710113,2441.8,2441.7,0.81894]
[1750499370528,2.35047113,2441.8,2441.7,0.81894]
[1750499371731,2.35047113,2441.8,2441.5,3.9004]
[1750499371935,0.81897,2441.7,2441.6,0.81897]
[1750499372232,5.24844113,2441.7,2441.6,0.81897]
[1750499372834,0.81898,2441.6,2441.5,4.71939]
[1750499373033,5.24844113,2441.7,2441.6,0.81898]
[1750499373630,2.35047113,2441.7,2441.6,0.81898]
[1750499374028,0.76067599,2441.9,2441.5,3.9004]
[1750499374029,3.11114712,2441.9,2441.5,3.9004]
[1750499374234,2.41894712,2441.9,2441.8,4.02671]
[1750499374734,3.16935113,2441.9,2441.8,0.81891]
[1750499377636,0.81892,2441.8,2441.7,0.81892]
[1750499377835,3.16937113,2441.9,2441.8,0.81891]
[1750499378336,3.16937113,2441.9,2441.7,0.81892]
[1750499378739,3.16937113,2441.9,2441.8,0.81891]
[1750499379237,0.81892,2441.8,2441.7,0.81892]
[1750499381137,3.16937113,2441.9,2441.8,0.81891]
[1750499382636,0.8189,2441.9,2441.8,0.81891]
[1750499382840,2.0783,2442.1,2441.9,0.81888]
[1750499382841,5.24761113,2442.1,2441.9,0.81888]
[1750499383040,0.81884,2442.0,2441.9,0.81888]
[1750499383335,4.42877113,2442.1,2441.8,3.2078]
[1750499383541,0.8188,2442.2,2441.9,0.6629]
[1750499383742,0.8188,2442.2,2442.1,0.81881]
[1750499383935,1.91316961,2442.2,2442.1,0.81881]
[1750499384940,1.91316961,2442.2,2442.0,0.81882]
[1750499385132,0.8188,2442.2,2442.0,0.81882]
[1750499385333,0.81881,2442.1,2442.0,0.81882]
[1750499386033,0.81884,2442.0,2441.9,3.48825]
[1750499386230,3.16931113,2442.0,2441.9,2.18185]
[1750499387438,2.35047113,2442.1,2441.9,2.18185]
[1750499387637,3.16930113,2442.1,2441.9,2.18185]
[1750499388345,3.16930113,2442.1,2442.0,0.81884]
[1750499388544,3.16930113,2442.1,2441.9,1.363]
[1750499388846,0.81884,2442.0,2441.9,2.18186]
[1750499389448,0.81888,2441.9,2441.8,4.0267]
[1750499389745,3.16935113,2441.9,2441.8,0.8189]
[1750499390847,0.81894,2441.7,2441.6,0.81895]
[1750499391147,3.16941113,2441.7,2441.5,4.72582106]
[1750499391846,2.35047113,2441.7,2441.6,0.81898]
[1750499393346,3.16941113,2441.7,2441.6,0.81898]
[1750499393648,2.35047113,2441.7,2441.6,0.81898]
[1750499397849,3.16936113,2441.9,2441.8,0.81891]
[1750499398353,0.81889,2441.9,2441.8,0.81891]
[1750499398554,0.81889,2441.9,2441.8,1.46531]
[1750499399253,1.47537,2442.0,2441.8,0.6464]
[1750499399553,0.6565,2442.0,2441.8,1.46529]
[1750499399753,0.81888,2441.9,2441.8,1.46529]
[1750499401150,1.47537,2442.0,2441.8,1.46529]
[1750499401455,1.47534,2442.0,2441.9,0.81888]
[1750499401652,0.06847599,2442.1,2442.0,0.81884]
[1750499402050,0.88728599,2442.1,2442.0,0.81884]
[1750499402252,3.16926113,2442.2,2442.0,0.81884]
[1750499402548,0.81881,2442.1,2442.0,0.81884]
[1750499402748,3.16927113,2442.2,2442.1,0.81881]
[1750499403353,1.47907,2442.3,2442.1,0.81881]
[1750499403551,3.16924113,2442.3,2441.8,4.78036]
[1750499403855,3.16924113,2442.3,2442.2,0.81878]
[1750499404153,4.2636403,2442.3,2442.1,0.81879]
[1750499404455,3.16923113,2442.3,2442.1,0.81879]
[1750499404757,3.16923113,2442.3,2442.2,0.81878]
[1750499404958,3.44477047,2442.3,2442.2,0.81878]
[1750499405148,3.44477138,2442.3,2441.9,1.385]
[1750499405453,0.81878,2442.2,2442.1,0.81879]
[1750499405656,0.81881,2442.1,2441.8,1.3187]
[1750499405855,3.16928113,2442.1,2441.8,1.3187]
[1750499406049,2.35047113,2441.9,2441.6,3.25873106]
[1750499406252,2.35047113,2441.9,2441.5,1.5179]
[1750499406253,3.16941113,2441.7,2441.5,1.5179]
[1750499406453,2.35047113,2441.6,2441.5,1.5179]
[1750499406658,3.16945113,2441.6,2441.5,1.5179]
[1750499407052,2.35047113,2441.6,2441.5,1.5179]
[1750499407453,3.16945113,2441.6,2441.5,1.5179]
[1750499407654,2.35047113,2441.6,2441.5,1.5179]
[1750499407855,0.81893,2441.8,2441.5,0.6989]
[1750499408056,0.81893,2441.8,2441.6,0.81894]
[1750499408558,0.81894,2441.7,2441.6,0.81894]
[1750499410153,0.81893,2441.8,2441.5,2.0989]
[1750499410459,0.81893,2441.8,2441.6,2.17835]
[1750499410761,0.81894,2441.7,2441.6,2.17835]
[1750499411061,0.81894,2441.8,2441.7,0.81894]
[1750499411357,0.81894,2441.8,2441.6,1.3594]
[1750499411358,0.81894,2441.8,2441.6,2.17835]
[1750499411752,0.81894,2441.7,2441.6,2.17835]
[1750499412856,0.81895,2441.7,2441.6,2.17835]
[1750499413158,3.16942113,2441.7,2441.6,0.81898]
[1750499413962,1.48483,2441.8,2441.7,0.81895]
[1750499417465,0.6659,2441.8,2441.7,0.81895]
[1750499417757,3.16936113,2441.9,2441.8,0.81891]
[1750499419162,0.81892,2441.8,2441.7,0.81892]
[1750499419363,3.16937113,2441.9,2441.7,0.81892]
[1750499420162,3.16937113,2441.9,2441.8,0.81891]
[1750499420958,2.35047113,2441.9,2441.8,0.81891]
[1750499421164,3.16930113,2442.1,2442.0,0.81884]
[1750499421367,3.44472653,2442.1,2442.0,0.81884]
[1750499421566,2.35047113,2442.1,2442.0,0.81884]
[1750499423166,3.73517113,2442.3,2441.8,2.72047]
[1750499423467,5.41813,2442.4,2442.3,0.81874]
[1750499423663,1.09413174,2442.4,2442.3,0.81874]
[1750499423861,0.81871,2442.4,2442.3,0.81873]
[1750499424066,0.81874,2442.3,2442.2,4.02656]
[1750499424271,3.16921113,2442.3,2442.2,4.02656]
[1750499425071,2.35047113,2442.3,2442.2,4.02656]
[1750499425270,1.46971,2442.4,2442.3,0.81874]
[1750499425562,2.08487599,2442.6,2442.2,3.2078]
[1750499425563,0.81866,2442.6,2442.5,0.81867]
[1750499425769,0.81868,2442.5,2442.4,0.81869]
[1750499426267,0.81868,2442.5,2442.3,0.81872]
[1750499427365,3.2078,2442.8,2442.3,5.0]
[1750499427564,0.81862,2442.7,2442.4,2.0571]
[1750499427769,3.16911113,2442.6,2442.4,1.47139]
[1750499428068,0.81868,2442.5,2442.4,0.6527]
[1750499428272,0.81868,2442.5,2442.3,0.81872]
[1750499428774,0.81868,2442.5,2441.9,7.28540106]
[1750499428775,2.35047113,2442.4,2441.9,7.28540106]
[1750499428965,2.35047113,2442.1,2441.9,6.46653106]
[1750499429263,0.81891,2441.8,2441.7,0.6583]
[1750499429469,2.35047113,2441.8,2441.7,2.13804]
[1750499429670,2.41894712,2441.8,2441.7,2.13804]
[1750499429865,2.41894712,2441.8,2441.7,1.47974]
[1750499430466,0.06847599,2441.8,2441.7,1.47974]
[1750499430874,0.88738599,2441.8,2441.7,1.47974]
[1750499431673,0.06847599,2441.8,2441.7,1.47974]
[1750499432173,0.88738599,2441.8,2441.7,1.47974]
[1750499436170,0.88738599,2441.8,2441.5,3.2078]
[1750499436171,0.81894,2441.7,2441.5,3.2078]
[1750499436478,2.35047113,2441.6,2441.5,4.6661]
[1750499436666,0.81896,2441.7,2441.6,0.81898]
[1750499436964,0.81898,2441.6,2441.5,4.66609]
[1750499437975,1.52296,2441.7,2441.6,0.81898]
[1750499438271,0.704,2441.7,2441.5,3.8471]
[1750499438472,1.52297,2441.7,2441.6,0.81898]
[1750499439376,0.81898,2441.6,2441.5,4.66609]
[1750499439674,3.16945113,2441.6,2441.5,3.2078]
[1750499439868,4.53055113,2441.6,2441.5,3.2078]
[1750499440277,4.53055113,2441.6,2441.5,4.02681]
[1750499441075,4.53055113,2441.6,2441.5,3.2078]
[1750499441273,4.53055113,2441.6,2441.5,4.02681]
[1750499441777,3.16945113,2441.6,2441.5,4.02681]
[1750499444483,0.81898,2441.6,2441.5,4.02681]
[1750499444682,3.87344113,2441.7,2441.6,0.81898]
[1750499444882,0.81898,2441.6,2441.5,4.02679]
[1750499447183,0.81898,2441.6,2441.5,4.02679]
[1750499447687,3.87344113,2441.7,2441.6,0.81898]
[1750499448090,3.87344113,2441.7,2441.6,1.52658]
[1750499448585,3.16944113,2441.7,2441.6,1.52658]
[1750499455696,2.35047113,2441.7,2441.6,1.52658]
[1750499455994,0.81891,2441.8,2441.7,0.81894]
[1750499456194,3.16936113,2441.9,2441.8,0.81891]
[1750499456492,4.02663,2442.1,2442.0,0.81884]
[1750499456997,0.81886,2442.0,2441.9,0.81885]
[1750499457799,0.81886,2442.0,2441.9,4.02665]
[1750499458300,3.16930113,2442.1,2442.0,0.81884]
[1750499459703,0.81884,2442.0,2441.9,4.02666]
[1750499459904,3.16930113,2442.1,2442.0,0.81884]
[1750499460594,0.81884,2442.0,2441.9,3.2078]
[1750499460902,2.35047113,2442.1,2442.0,0.81884]
[1750499461200,0.8188,2442.2,2442.0,0.81884]
[1750499461405,0.8188,2442.2,2442.1,0.81881]
[1750499461998,1.3167,2442.3,2442.2,0.81878]
[1750499462199,2.35047113,2442.7,2442.2,3.2078]
[1750499462503,0.81869,2442.5,2442.4,0.8187]
[1750499462902,3.16916113,2442.5,2442.3,4.72602]
[1750499463299,0.81871,2442.4,2442.3,3.2078]
[1750499463604,0.81871,2442.4,2442.3,0.81874]
[1750499463805,0.81871,2442.4,2442.2,0.81875]
[1750499464007,2.35047113,2442.4,2442.3,0.81874]
[1750499464705,2.35047113,2442.4,2442.3,4.02653]
[1750499465002,3.16918113,2442.4,2442.3,4.02653]
[1750499466006,3.16918113,2442.4,2442.3,3.2078]
[1750499466305,0.81871,2442.4,2442.3,4.02654]
[1750499466505,0.81871,2442.4,2442.3,3.2078]
[1750499470007,0.81871,2442.4,2442.3,4.02654]
[1750499470706,0.81871,2442.4,2442.3,3.2078]
[1750499471508,0.81871,2442.4,2442.3,4.02654]
[1750499471710,3.82187113,2442.5,2442.3,3.2078]
[1750499471909,3.82187113,2442.5,2442.4,0.6559]
[1750499472111,3.16917113,2442.5,2442.4,1.47461]
[1750499472408,3.16917113,2442.5,2442.4,0.6559]
[1750499473206,3.16917113,2442.5,2442.4,1.47461]
[1750499473413,0.81871,2442.4,2442.3,4.02653]
[1750499473803,1.48181,2442.4,2442.3,4.02653]
[1750499474910,0.81871,2442.4,2442.3,4.02653]
[1750499475209,3.16916113,2442.5,2442.4,0.81871]
[1750499475608,3.16916113,2442.5,2442.4,1.48921]
[1750499476709,2.35047113,2442.5,2442.4,1.48921]
[1750499477112,3.16915113,2442.5,2442.4,1.48921]
[1750499477806,3.16915113,2442.5,2442.4,0.6705]
[1750499478007,0.81871,2442.4,2442.3,4.02652]
[1750499478406,1.49131,2442.4,2442.3,4.02652]
[1750499480909,1.49131,2442.4,2442.3,0.81872]
[1750499481314,0.81874,2442.3,2442.2,4.69706]
[1750499481516,3.16921113,2442.3,2442.2,4.69706]
[1750499482609,0.81873,2442.4,2442.3,0.81874]
[1750499482810,0.81874,2442.3,2442.2,4.69706]
[1750499484114,0.81874,2442.3,2442.2,3.8783]
[1750499484317,0.81874,2442.3,2442.2,4.69708]
[1750499484711,0.81874,2442.3,2442.2,3.8783]
[1750499486416,0.81874,2442.3,2442.2,4.69708]
[1750499486721,0.06847599,2442.5,2442.4,0.81871]
[1750499487723,0.81865,2442.6,2442.5,0.81868]
[1750499488322,0.81865,2442.6,2442.5,4.02648]
[1750499489018,0.81865,2442.6,2442.5,3.8988]
[1750499489921,0.81863,2442.7,2442.5,4.71745]
[1750499490623,0.81863,2442.7,2442.6,0.81864]
[1750499491024,1.91442453,2442.7,2442.5,4.71745]
[1750499491224,0.81863,2442.7,2442.5,4.71745]
[1750499491616,0.81863,2442.7,2442.6,0.81864]
[1750499491813,3.2078,2443.1,2442.7,0.81861]
[1750499492013,3.26682835,2444.2,2443.0,7.90874226]
[1750499492216,2.738,2444.3,2444.1,3.2078]
[1750499492417,1.3727,2444.3,2444.2,0.81811]
[1750499492620,4.53376113,2444.6,2444.2,0.81811]
[1750499492820,4.53376113,2444.6,2444.3,0.81805]
[1750499494023,3.71577113,2444.6,2444.1,4.5399]
[1750499494229,3.71577113,2444.6,2444.4,0.81804]
[1750499494424,3.71577113,2444.6,2444.5,0.81801]
[1750499494623,2.35047113,2444.8,2444.4,3.2078]
[1750499494935,3.2078,2444.9,2444.8,0.81791]
[1750499495420,1.3424,2445.0,2444.9,0.81787]
[1750499495620,0.6667,2445.0,2444.9,0.81787]
[1750499497825,1.4034,2445.2,2445.1,0.81781]
[1750499498028,2.14532,2445.4,2445.2,0.81776]
[1750499498327,2.14532,2445.4,2445.2,0.81777]
[1750499498532,1.3276,2445.4,2445.2,0.81777]
[1750499498726,1.3276,2445.4,2444.9,3.66447113]
[1750499498926,2.14532,2445.4,2444.9,3.66447113]
[1750499499127,2.14532,2445.4,2445.2,0.81777]
[1750499500129,2.14532,2445.4,2445.1,0.81779]
[1750499500638,3.2078,2445.9,2445.3,2.35047113]
[1750499500838,0.81757,2445.8,2445.5,0.81764]
[1750499501036,0.81757,2445.8,2445.6,0.81764]
[1750499501229,3.2078,2445.9,2445.8,0.81757]
[1750499501430,0.8175,2446.0,2445.7,0.81759]
[1750499501631,0.8175,2446.0,2445.8,0.81757]
[1750499502035,3.2078,2446.2,2445.8,7.35047113]
[1750499502239,0.1566,2447.9,2446.7,3.2078]
[1750499502429,1.1566,2447.9,2447.8,3.2078]
[1750499502740,0.81726,2446.8,2446.5,3.2078]
[1750499503034,2.35047113,2446.6,2446.5,3.2078]
[1750499503430,0.07112506,2448.2,2446.6,2.04324]
[1750499503629,1.1566,2447.9,2447.8,3.2078]
[1750499504028,5.1566,2447.9,2447.8,2.2078]
[1750499504225,7.1882,2447.9,2447.5,3.2078]
[1750499504436,2.1882,2447.9,2447.5,3.2078]
[1750499504628,4.53867113,2447.9,2447.5,4.0248]
[1750499504825,2.1882,2447.9,2447.5,4.0248]
[1750499505030,2.1882,2447.9,2447.5,3.2078]
[1750499505228,3.2078,2449.1,2447.8,3.2078]
[1750499505429,4.48718878,2448.0,2447.6,3.2078]
[1750499505641,4.48718878,2447.7,2447.6,3.2078]
[1750499506339,6.47878878,2447.9,2447.6,3.2078]
[1750499506729,0.07111903,2448.8,2447.6,3.2078]
[1750499507044,1.3384,2448.7,2448.6,3.2078]
[1750499507542,6.3384,2448.7,2448.6,3.2078]
[1750499507731,7.155,2448.7,2448.6,3.2078]
[1750499507936,6.3384,2448.7,2448.6,3.2078]
[1750499508246,0.6574,2448.9,2448.6,3.2078]
[1750499508439,1.9958,2448.9,2448.6,3.2078]
[1750499508941,5.30376878,2448.8,2448.6,3.2078]
[1750499509143,1.3384,2448.7,2448.6,3.2078]
[1750499509539,6.3384,2448.7,2448.6,3.2078]
[1750499510043,7.155,2448.7,2448.6,3.2078]
[1750499510229,6.3384,2448.7,2448.6,3.2078]
[1750499510651,7.155,2448.7,2448.6,3.2078]
[1750499511045,15.655,2448.7,2448.6,3.2078]
[1750499511436,4.48718878,2449.2,2448.6,3.2078]
[1750499511641,1.3571,2449.1,2448.9,3.2078]
[1750499511836,0.8165,2449.0,2448.9,3.2078]
[1750499512444,5.8165,2449.0,2448.9,3.2078]
[1750499512742,7.1764,2449.0,2448.9,3.2078]
[1750499513742,3.2078,2449.5,2449.0,0.81648]
[1750499514045,0.8165,2449.0,2448.9,3.2078]
[1750499514548,2.1764,2449.0,2448.9,3.2078]
[1750499514842,2.8735,2449.0,2448.9,3.2078]
[1750499516835,0.81659,2448.8,2448.5,3.2078]
[1750499517039,7.057,2449.0,2448.5,3.2078]
[1750499517040,0.81662,2448.7,2448.5,3.2078]
[1750499517241,5.30382878,2448.6,2448.5,3.2078]
[1750499517442,0.81669,2448.5,2448.2,4.5442]
[1750499517644,0.81667,2448.6,2448.3,0.81674]
[1750499517845,0.81667,2448.6,2448.5,3.2078]
[1750499517846,0.81664,2448.6,2448.5,3.2078]
[1750499518243,6.54418878,2449.0,2448.5,3.2078]
[1750499518437,0.81664,2448.6,2448.5,3.2078]
[1750499518851,2.057,2449.0,2448.5,3.2078]
[1750499519051,0.81662,2448.7,2448.5,3.2078]
[1750499519255,0.81659,2448.8,2448.5,3.2078]
[1750499519552,0.8166,2448.7,2448.5,3.2078]
[1750499520241,0.81664,2448.6,2448.5,3.2078]
[1750499524052,0.88511599,2448.6,2448.5,3.2078]
[1750499525144,0.81664,2448.6,2448.5,3.2078]
[1750499525847,0.81674,2448.3,2448.2,3.2078]
[1750499530953,0.81674,2448.3,2448.2,4.02457]
[1750499531150,0.81665,2448.6,2448.4,0.81669]
[1750499531355,2.04143,2448.8,2448.3,1.3723]
[1750499531554,0.81669,2448.5,2448.3,2.18902]
[1750499531854,0.8167,2448.4,2448.3,1.3723]
[1750499532156,0.81674,2448.3,2448.2,3.2078]
[1750499532744,0.81674,2448.3,2448.2,4.5801]
[1750499532951,0.81674,2448.3,2448.2,3.2078]
[1750499534147,1.85046477,2448.3,2448.2,3.2078]
[1750499535755,0.81674,2448.3,2448.2,3.2078]
[1750499536356,1.8501043,2448.3,2448.2,3.2078]
[1750499538358,1.0333643,2448.3,2448.2,4.02457]
[1750499538554,1.03343265,2448.7,2448.2,4.02454]
[1750499538857,1.03343265,2448.6,2448.5,3.2078]
[1750499539057,1.85007265,2448.6,2448.5,3.2078]
[1750499542650,1.03343265,2448.6,2448.5,4.02447]
[1750499542958,1.85007265,2448.6,2448.5,3.2078]
[1750499544157,0.81674,2448.3,2448.2,3.2078]
[1750499544360,1.85017265,2448.3,2448.2,3.2078]
[1750499545055,2.52477265,2448.3,2448.2,3.2078]
[1750499545256,3.89547265,2448.3,2448.2,3.2078]